Cogmind - Beta 14 @@@ ROGUE MODE // 2024.11.22 @ 22:48:41 Player: akira Result: Destroyed self with Ion Engine chain reaction Performance ------------- Evolutions (0) 0 Regions Visited (1) 200 Robots Destroyed (16) 80 Value Destroyed (498) 498 Prototype IDs (0) 0 Alien Tech Used (0) 0 Bonus (8) 8 TOTAL SCORE: 786 Bonus ------- High Alert Combat Kills 8 Cogmind --------- Core Integrity 0/250 Matter 300/300 Energy 109/125 System Corruption 0% Temperature Cool (12) Movement Walking (120) Location -10/Materials Parts ------- > --- POWER (1) -------- Light Ion Engine > --- PROPULSION (2) --- Aluminum Leg Aluminum Leg > --- UTILITY (2) ------ Medium Storage Unit Structural Scanner > --- WEAPON (2) ------- EM Pulse Gun > --- INVENTORY (10) --- Light Ion Engine Light Treads Light Treads Large Storage Unit Terrain Scanner Seismic Detector Hammer Peak State ------------ > --- POWER ------------ Light Nuclear Core > --- PROPULSION ------- Aluminum Leg Aluminum Leg > --- UTILITY ---------- Medium Storage Unit Structural Scanner > --- WEAPON ----------- Assault Rifle Light Assault Rifle > --- INVENTORY -------- Light Ion Engine Light Ion Engine Light Treads Light Treads Aluminum Leg Large Storage Unit Terrain Scanner Seismic Detector EM Pulse Gun Hammer [Rating: 10] Favorites ----------- Power Ion Engine Engine Ion Engine Power Core Light Nuclear Core Propulsion Aluminum Leg Leg Aluminum Leg Utility Medium Storage Unit Device Structural Scanner Storage Medium Storage Unit Weapon Assault Rifle Energy Gun EM Pulse Gun Ballistic Gun Assault Rifle Build | -11 -10 ------- Run | Yrd Mat Slots Evolved . | . . Power . | . . Propulsion . | . . Utility . | . . Weapon . | . . Parts Attached 20 | 5 15 Power 4 | 1 3 Engine 3 | 1 2 Core 1 | . 1 Reactor . | . . Propulsion 6 | 2 4 Treads . | . . Leg 6 | 2 4 Wheel . | . . Hover . | . . Flight . | . . Utility 5 | 1 4 Device 3 | . 3 Storage 2 | 1 1 Processor . | . . Hackware . | . . Protection . | . . Artifact . | . . Weapon 5 | 1 4 Energy Gun 1 | . 1 Energy Cannon . | . . Ballistic Gun 4 | 1 3 Ballistic Cannon . | . . Launcher . | . . Special Weapon . | . . Impact Weapon . | . . Slashing Weapon . | . . Piercing Weapon . | . . Special Melee Weapon . | . . Unidentified Prototypes . | . . Parts Lost 5 | . 5 Power 1 | . 1 Propulsion 2 | . 2 Utility . | . . Weapon 2 | . 2 Highest Loss Streak 5 | . 5 To Critical Strikes . | . . Average Slot Usage (%) 92 | . 92 Engine 12 | . 12 Core 1 | . 1 Leg 27 | . 27 Device 13 | . 13 Storage 14 | . 14 Ballistic Gun 22 | . 22 Peak Build Rating 10 | 5 10 Average Rating 7 | 4 7 On Entrance 2 | . 5 Naked Turns . | . . Heaviest Build 20 | 10 20 Greatest Support 20 | 20 20 Greatest Overweight (x) 1 | . 1 Average Overweight (x) . | . . Largest Inventory Capacity 10 | 8 10 Average Capacity 9 | 7 9 Most Carried 10 | 5 10 Average Carried 8 | 2 9 Final Capacity 10 | 8 10 Final Carried 7 | 5 7 Class Distribution -------------------- 100% | Mutant Dominant Class ---------------- Mutant | -10/Materials Resources | -11 -10 ----------- Run | Yrd Mat Matter Collected 533 | 201 332 Remotely . | . . Salvage Created 607 | . 607 Parts 33 | . 33 Haulers Intercepted . | . . Recyclers Shooed . | . . Parts Field Recycled . | . . Retrieved Matter . | . . Parts Self-Destructed . | . . Prevented . | . . Kills | -11 -10 ------- Run | Yrd Mat Combat Hostiles Destroyed 16 | . 16 Guns 15 | . 15 AOE 1 | . 1 Classes Destroyed 2 | . 2 Swarmer 3 | . 3 Grunt 13 | . 13 Best Kill Streak 5 | . 5 Combat Bots Only 5 | . 5 Max Kills in Single Turn 1 | . 1 Gunslinging . | . . Exploded 1 | . 1 Melee . | . . Uniques/NPCs Destroyed . | . . Combat | -11 -10 -------- Run | Yrd Mat Hostile Shots Fired 101 | . 101 Missed 24 | . 24 Damage Taken 967 | . 967 Core 269 | . 269 Absorbed by Shields . | . . Core Remaining (%) 100 | 100 . Volleys Fired 51 | . 51 Largest 2 | . 2 Hottest 40 | . 40 Shots Fired 80 | . 80 Gun 80 | . 80 Cannon . | . . Launcher . | . . Special . | . . Kinetic 74 | . 74 Thermal . | . . Explosive . | . . Electromagnetic 6 | . 6 Robot Hit Streak 13 | . 13 Robot Miss Streak 3 | . 3 Penetration Max . | . . Secondary Targets 3 | . 3 Max Gunslinging Chain 1 | . 1 Shots Hit Robots 61 | . 61 Core Hits 29 | . 29 Critical Kills . | . . Critical Parts Destroyed . | . . Critical Strikes . | . . Melee Attacks . | . . Impact . | . . Slashing . | . . Piercing . | . . Sneak Attacks . | . . Combat Hostiles . | . . Follow-up Attacks . | . . Damage Inflicted 722 | . 722 Guns 681 | . 681 Cannons . | . . Explosions 41 | . 41 Melee . | . . Ramming . | . . Kinetic 601 | . 601 Thermal 41 | . 41 Explosive . | . . Electromagnetic 80 | . 80 Impact . | . . Slashing . | . . Piercing . | . . Highest Corruption . | . . Average Corruption . | . . Corruption Purged . | . . Corruption Blocked . | . . Overload Shots . | . . Overflow Damage . | . . Projectiles . | . . Explosions . | . . Melee . | . . Knockbacks . | . . Impact . | . . Kinetic . | . . Secondary . | . . Self-Inflicted Damage 36 | . 36 Shots 1 | . 1 Rammed . | . . Targets Rammed . | . . Kicked . | . . Crushed . | . . Highest Temperature 69 | . 69 Average Temperature 24 | . 24 Received Heat Transfer 483 | . 483 Siege Activations . | . . Robots Corrupted . | . . Combat Hostiles . | . . Parts Fried . | . . Impact Corruptions . | . . Robots Melted . | . . Combat Hostiles . | . . Parts Melted . | . . Heat Transferred . | . . Parts Sabotaged . | . . Parts Stolen . | . . Parts Stripped . | . . Power Chain Reactions 1 | . 1 Alert | -11 -10 ------- Run | Yrd Mat Peak Influence 410 | . 410 Initial . | . . Average 84 | . 90 Maximum Alert Level 2 | . 2 Low Security (%) 83 | 100 82 Level 1 13 | . 14 Level 2 2 | . 2 Level 3 . | . . Level 4 . | . . Level 5 . | . . High Security . | . . Max Security . | . . Squads Dispatched 3 | . 3 Investigation 2 | . 2 Extermination . | . . Reinforcement 1 | . 1 Assault . | . . Garrison . | . . Intercept . | . . Searches Triggered . | . . Construction Impeded . | . . Haulers Reinforced . | . . Active Scanning Responses . | . . Cargo Convoy Interrupts . | . . Stealth | -11 -10 --------- Run | Yrd Mat Distress Signals 2 | . 2 Communications Jammed . | . . Distress Signals . | . . Times Spotted 26 | . 26 Peak Tracking Total 9 | . 9 Tactical Retreats 4 | . 4 Traps | -11 -10 ------- Run | Yrd Mat Traps Triggered 1 | . 1 Indirectly . | . . Trap Hack Attempts . | . . Triggered . | . . Disarmed . | . . Reprogrammed . | . . Reused . | . . Traps Extracted . | . . Installed . | . . Triggered . | . . Machines | -11 -10 ---------- Run | Yrd Mat Machines Disabled . | . . Max in Single Turn . | . . Machines Repaired . | . . Machines Dismantled . | . . Machines Sabotaged . | . . Overloaded Fab Kills . | . . Hacking | -11 -10 --------- Run | Yrd Mat Machines Accessed 2 | . 2 Terminals 2 | . 2 Fabricators . | . . Repair Stations . | . . Recycling Units . | . . Scanalyzers . | . . Garrison Access . | . . Total Hacks 8 | . 8 Successful 4 | . 4 Failed 4 | . 4 Catastrophic 1 | . 1 Database Lockouts . | . . Manual 8 | . 8 Terminals 8 | . 8 Fabricators . | . . Repair Stations . | . . Recycling Units . | . . Scanalyzers . | . . Garrison Access . | . . Terminal Hacks 4 | . 4 Robot Analysis 4 | . 4 Fabricator Hacks . | . . Repair Station Hacks . | . . Recycling Unit Hacks . | . . Scanalyzer . | . . Garrison Access Hacks . | . . Unauthorized Hacks . | . . Terminals . | . . Fabricators . | . . Repair Stations . | . . Recycling Units . | . . Scanalyzers . | . . Garrison Access . | . . Data Cores Recovered . | . . Used . | . . Hacking Detections 2 | . 2 Full Trace Events 2 | . 2 Feedback Events . | . . Feedback Blocked . | . . Robot Schematics Acquired . | . . Robots Built . | . . Authchips . | . . Time . | . . Total Robot Build Rating . | . . Part Schematics Acquired . | . . Parts Built . | . . Authchips . | . . Time . | . . Total Part Build Rating . | . . Parts Repaired . | . . Time . | . . Parts Recycled . | . . Recycled Matter . | . . Retrieved Matter . | . . Retrieved Components . | . . Parts Scanalyzed . | . . Part Schematics Acquired . | . . Parts Damaged . | . . Bothacking | -11 -10 ------------ Run | Yrd Mat Used RIF Installer . | . . Robots Hacked . | . . Non-combat . | . . Combat . | . . Robot Hacks Applied . | . . Relay Couplers Released . | . . Fabnet Peak Effective % . | . . Robots Rewired . | . . Allies Hacked . | . . Hacks Repelled . | . . Allies | -11 -10 -------- Run | Yrd Mat Total Allies . | . . Largest Group . | . . Highest-Rated Group . | . . Highest-Rated Ally . | . . Total Orders . | . . Ally Attacks . | . . Total Damage . | . . Kills . | . . Allies Corrupted . | . . Allies Melted . | . . Intel | -11 -10 ------- Run | Yrd Mat Robot Analysis Total 4 | . 4 Derelict Logs Recovered . | . . Drone Launches . | . . Drone Recoveries . | . . Exploration | -11 -10 ------------- Run | Yrd Mat Turns Passed 828 | 53 775 Spaces Moved 336 | 38 298 Core 6 | 6 . Treads . | . . Legs 330 | 32 298 Wheels . | . . Hover . | . . Flight . | . . Fastest Speed 50 | 50 120 Average Speed 119 | 108 120 Slowest Speed 190 | 120 190 Overloaded Moves . | . . Propulsion Burnouts . | . . Robots Hopped . | . . Cave-ins Triggered . | . . Exploration Rate (%) 26 | 5 47 Regions Visited 1 Branch Regions . Pre-discovered Areas . | . . Known Exits Taken . | . . Unknown Exits Taken 1 | 1 . Scrap Searched . | . . Spaces Dug . | . . Terrain Destroyed . | . . Melee . | . . Projectile . | . . AOE . | . . Terrain Rammed . | . . Walls Destroyed . | . . Machines Disabled . | . . Actions | -11 -10 --------- Run | Yrd Mat Total 689 | 47 642 Wait 263 | . 263 Move 335 | 37 298 Hop . | . . Pick Up 14 | 5 9 Fast Attach 7 | 5 2 Attach 6 | . 6 Detach . | . . Swap 7 | . 7 Drop 6 | . 6 Fire 51 | . 51 Melee . | . . Ram . | . . Kick . | . . Crush . | . . Escape Stasis . | . . Rewire . | . . Trap . | . . Miscellaneous . | . . Route ------- -11/Scrapyard -10/Materials (discovered 2 exits: [*Min x2]) History --------- Turn | Location | Event 9 | -11/Scrapyard | Discovered new exit (range 15) 54 | -11/Scrapyard | Entered Materials 201 | -10/Materials | Discovered new exit (range 15) 306 | -10/Materials | Build established: Mutant 595 | -10/Materials | Discovered new exit (range 10) 685 | -10/Materials | Core integrity fell below 50% 773 | -10/Materials | Core integrity fell below 20% 809 | -10/Materials | Lost 5 parts (1p2n2w) 829 | -10/Materials | Destroyed self with Ion Engine chain reaction Last Messages --------------- 00736_ Dropped Aluminum Leg. 00744_ Lgt. Nuclear Core destroyed. 00748_ T-07 Excavator is excavating. 00751_ G-34 Mercenary destroyed. 00753_ R-06 Scavenger collects Heat Sink. 00754_ Acquired 22 matter. 00763_ R-06 Scavenger collects Ion Engine. 00764_ Acquired 1 matter. 00770_ Aluminum Leg destroyed. 00771_ Acquired 1 matter. 00773_ Acquired 10 matter. 00774_ Acquired 6 matter. 00778_ Lgt. Assault Rifle destroyed. 00786_ G-47 Trooper destroyed. 00788_ G-34 Mercenary destroyed. 00790_ Acquired 12 matter. 00814_ ALERT: Hostiles spotted, dispatching reinforcements to Terminal M002. 00829_ Chain reaction triggered in Ion Engine. 00829_ G-34 Mercenary destroyed. Map ----- +----------------------------------------------------+ | """ # """ """ # ###########%% # ???????????? | | """ # """ """ # ###########= # ##?????????? | | """ # # ?????????## # # ?????????? | | # # ?????????####+#/#### # ?????????? | | # # ##???????#### !# ?????????? | | #####+#####+#########?### # ?????????? | | ######### # ############T + ?????????? | | + # # "" # ###### # ??????? | | # # + "Y # ###T## "Y" ###+#??????? | | # # # "" # """ # """ ???? | | + # # # """ #* ##???? | | # # #!! # """ !+ ##???? | | # # #! [ # # w#######+#### ##???? | | ######## ############# ##### T # ##???? | | #?????## ############ "##????????? ?????? | | #?????## # #### ""##????????????????? | | #?????## + #### !!##????????????????? | | #?????## #! #### < ""##????????????????? | | #????### ############ ||##????????????????? | | ######## ##### ## k ""##????????????????? | | ####### ## "##????????????????? | | < ### #####????????????????? | | [ ### #####????????????????? | | #### == ### ##???????????????????? | | ###+### ##### [ ####t ###??????????????????? | | ## ########### ####@ ##### ????????????? | | ## ########?## %= #######+????????????? | | ## ##???????## [ ! ?????????? | | ## ##???????## ????????? | | ## ##???????## | ?????????? | | ########???????## ?????????? | | ########???????## """ """ """ ??????????? | | #??????????????## """ """ """????????????? | | #??????????????## """ """ ""?????????????? | | #??????????????## ? ?????????????? | | #??????????????## ? ?????????????? | | #???#???????? ? # """ ?"?????????????? | | #?????????????? # /! """ ????????????????? | | #????????"????? # /! "???????????????????? | | #?????????????? + ??????????????????? | | #?#???????????? # ???????????????????? | | #?????????????? # ???????????????????? | | ##?????????????? # ?????????????????????? | | ?????????????????? ???????????????????????? | | ?????????????????? ??????????????????????????? | | ?????????????????? ????????????????????????????? | | ?????????????????????????????????????????????????? | | ?????????????????????????????????????????????????? | | ?????????????????????????????????????????????????? | | ?????????????????????????????????????????????????? | +----------------------------------------------------+ Best States ------------- Heat Dissipation 25 Energy Generation 14 Energy Capacity 250 Matter Stores 300 Matter Capacity 300 Sight Range 16 Terrain Scan Range 14 Terrain Scan Density 10 Evasion (%) 55 Item Schematics ----------------- None Robot Schematics ------------------ None Fabricated ------------ Nothing Alien Tech Used ----------------- None Achievements -------------- Armchair Analyst root@ Challenges ------------ None Game ------ Seed TrackerSchematicChronowheel Manual? 0 Play Time 00:14:01 Cumulative 21.6 hours Start 2024.11.22 @ 22:34:28 End 2024.11.22 @ 22:48:41 Sessions 1 Manual Loads 0 Difficulty Rogue Special Mode None Game No. 35 Rogue 35 Adventurer 0 Explorer 0 Win Type - Total 0 Types 0/0/0/0/0/0/0/0/0 Lore% 6 Gallery% 18 Achievement% 19 Wizard Run 0 Options --------- Layout 1 ASCII 0 Keyboard 0 Movement Mouse Keybinds 0 Fullscreen 1 Font 16/SmallcapsGlow Map View 55x38 Zoom Use 59% Tactical HUD 1 Map Filters NONE Filters NONE Steam 1 RUN: 9dca5276-a6b1-4540-aa5a-11c623045c57